bitfinex/quotes_ETHUSD_20250214
["timestamp","ask_amount","ask_price","bid_price","bid_amount"]
[1739569742890,0.55,2742.5,2742.2,7.29334]
[1739569743142,0.55,2742.5,2742.3,3.64655]
[1739569743665,0.55,2742.5,2742.4,3.64644]
[1739569744807,0.55,2742.5,2742.3,3.64655]
[1739569744958,0.55,2742.5,2742.1,3.64676]
[1739569745306,4.1964,2742.5,2742.0,3.6469]
[1739569745601,4.9882,2742.3,2741.8,3.64712]
[1739569745896,1.3416,2742.3,2741.9,3.64703]
[1739569746099,4.98825,2742.3,2741.8,3.64712]
[1739569746261,4.19686,2742.1,2741.7,3.64736]
[1739569746664,4.19686,2742.1,2741.6,3.64742]
[1739569747298,0.55,2742.2,2741.7,3.64736]
[1739569747499,0.55,2742.2,2741.8,3.64723]
[1739569747865,0.55,2742.0,2741.8,3.64723]
[1739569748880,0.55,2742.0,2741.7,3.64735]
[1739569749058,0.55,2742.0,2741.6,3.64742]
[1739569749253,4.46257093,2741.9,2741.4,3.64775]
[1739569749459,4.19738,2741.7,2741.2,3.64795]
[1739569749857,4.19738,2741.7,2741.0,3.64821]
[1739569749858,0.7698,2741.4,2741.0,3.64821]
[1739569750211,0.55,2741.3,2740.8,4.45037]
[1739569750510,0.55,2741.3,2740.4,3.07636196]
[1739569750511,0.7698,2740.8,2740.4,3.64898]
[1739569750774,0.55,2740.7,2740.4,3.64898]
[1739569751039,0.55,2740.7,2740.2,7.29855]
[1739569751605,0.55,2740.7,2740.3,3.6492]
[1739569751810,0.7698,2741.1,2740.5,3.64884]
[1739569752016,0.7698,2741.1,2740.7,3.64859]
[1739569753247,4.19832,2741.0,2740.3,3.64917]
[1739569753546,0.55,2740.8,2740.3,3.64917]
[1739569753948,4.19863,2740.8,2740.3,3.64917]
[1739569754326,4.19863,2740.8,2740.3,3.64915]
[1739569754726,0.55,2740.8,2740.5,3.64895]
[1739569755716,0.55,2740.8,2740.3,3.64917]
[1739569755932,0.55,2740.8,2740.4,3.64907]
[1739569756446,0.55,2740.8,2740.3,3.64917]
[1739569756650,0.55,2740.8,2740.4,3.64905]
[1739569756800,5.39,2740.8,2740.7,3.6487]
[1739569757201,5.94,2740.8,2740.7,3.6487]
[1739569758388,0.55,2740.7,2740.5,7.2978]
[1739569758690,0.55,2740.7,2740.5,3.64888]
[1739569758989,0.55,2740.5,2740.3,3.64918]
[1739569759286,0.55,2740.5,2740.3,3.64915]
[1739569759665,5.94,2740.5,2739.9,0.8019]
[1739569759875,0.55,2740.3,2739.5,0.8019]
[1739569760209,5.94,2740.3,2740.1,3.64947]
[1739569760387,5.94,2740.3,2740.1,3.64943]
[1739569761573,5.94,2740.3,2739.9,7.29932]
[1739569761741,0.55,2740.2,2740.0,3.64954]
[1739569761941,0.55,2740.2,2740.0,3.64956]
[1739569762175,0.55,2740.2,2739.9,3.64966]
[1739569762577,0.55,2740.2,2740.0,3.64963]
[1739569763145,0.55,2740.2,2740.1,3.6495]
[1739569764339,0.55,2740.2,2739.9,3.64966]
[1739569764546,4.41971,2740.1,2739.6,3.65006]
[1739569764784,4.41971,2740.1,2739.6,7.30013]
[1739569765151,4.19972,2740.0,2739.5,3.65029]
[1739569765356,9.58972,2740.0,2739.5,3.65029]
[1739569765676,5.94,2740.0,2739.6,3.65016]
[1739569765871,5.94,2740.0,2739.2,0.8271]
[1739569765872,5.94,2740.0,2739.9,3.64976]
[1739569766070,5.39,2740.0,2739.9,3.64976]
[1739569768744,0.55,2740.3,2740.1,3.64942]
[1739569769181,0.55,2740.3,2740.1,7.29883]
[1739569769577,0.55,2740.3,2740.2,3.64936]
[1739569770391,0.55,2740.3,2740.1,3.64941]
[1739569770891,0.55,2740.3,2740.1,7.29882]
[1739569771290,0.55,2740.3,2740.2,3.64936]
[1739569771652,2.74,2740.3,2740.2,3.64936]
[1739569771852,0.55,2740.3,2740.2,3.64936]
[1739569773390,0.55,2740.3,2740.1,3.64947]
[1739569773598,0.55,2740.3,2740.0,3.64963]
[1739569773785,0.55,2740.3,2740.2,3.64936]
[1739569774097,0.55,2740.3,2740.0,7.29918]
[1739569774395,0.55,2740.3,2740.0,3.64955]
[1739569774549,5.94,2740.3,2740.0,3.64955]
[1739569774949,5.94,2740.3,2740.1,3.6495]
[1739569775971,5.94,2740.3,2739.9,3.64975]
[1739569775972,5.94,2740.3,2740.0,3.64961]
[1739569776485,5.94,2740.3,2739.9,4.48308333]
[1739569776486,0.7702,2740.0,2739.9,0.83333333]
[1739569776686,7.15983,2740.0,2739.9,0.83333333]
[1739569777996,0.55,2740.0,2739.9,0.83333333]
[1739569778949,4.19963,2740.0,2739.9,0.83333333]
[1739569779157,4.95383,2740.0,2739.9,0.83333333]
[1739569779356,7.14383,2740.0,2739.9,0.83333333]
[1739569780597,12.53383,2740.0,2739.9,0.83333333]
[1739569781595,2.9442,2739.8,2739.0,3.65085]
[1739569781790,2.74,2739.4,2739.0,3.65085]
[1739569782808,2.74,2739.4,2738.8,3.65113]
[1739569782968,0.55,2739.2,2738.8,3.65113]
[1739569783175,5.39,2739.1,2738.8,3.65113]
[1739569784663,5.39,2739.1,2738.9,3.65102]
[1739569785198,5.39,2739.1,2738.9,3.65103]
[1739569785397,5.39,2739.1,2738.6,0.8012]
[1739569785558,0.55,2739.0,2738.8,3.65117]
[1739569786453,0.55,2739.0,2738.8,3.65123]
[1739569788002,0.55,2739.0,2738.4,0.8012]
[1739569788213,0.55,2739.0,2738.8,3.65123]
[1739569788462,0.55,2739.0,2738.6,3.65138]
[1739569788463,0.55,2739.0,2738.7,3.65133]
[1739569788669,5.94,2739.0,2738.6,3.65149]
[1739569788815,0.7542,2738.9,2738.6,3.65149]
[1739569790050,0.7542,2738.9,2738.7,3.65128]
[1739569791163,0.55,2738.8,2738.5,3.65156]
[1739569791762,0.55,2738.7,2738.6,3.65148]
[1739569793080,0.55,2738.6,2738.4,3.65176]
[1739569793260,5.39,2738.6,2738.5,3.65163]
[1739569795150,0.55,2738.4,2738.2,3.652]
[1739569795346,0.59564664,2738.4,2738.0,3.65218]
[1739569795582,0.55,2738.4,2738.0,3.65218]
[1739569795951,0.55,2738.4,2738.2,3.65202]
[1739569796171,5.94,2738.4,2738.2,3.65202]
[1739569796530,5.94,2738.4,2738.2,3.65193]
[1739569796735,5.94,2738.4,2738.3,3.6519]
[1739569797075,5.94,2738.4,2738.0,3.65221]
[1739569797791,5.94,2738.4,2738.2,3.65193]
[1739569798153,5.94,2738.4,2738.3,3.6519]
[1739569798555,5.94,2738.4,2738.2,7.30388]
[1739569799075,5.94,2738.4,2738.2,3.65193]
[1739569799633,5.39,2738.4,2738.3,3.6519]
[1739569799837,5.39,2738.4,2738.3,4.4427]
[1739569800084,5.39,2738.4,2738.3,5.252163]
[1739569800381,5.39,2739.8,2739.4,3.65035]
[1739569800684,6.1431,2739.9,2739.4,3.65035]
[1739569800986,8.3331,2739.9,2739.4,3.65034]
[1739569801289,2.74,2739.8,2739.2,3.65067]
[1739569801491,2.19,2739.6,2739.1,3.65076]
[1739569801655,0.7531,2739.7,2739.1,3.65076]
[1739569801845,0.7531,2739.7,2739.3,3.65054]
[1739569802365,0.55,2739.3,2738.8,3.65121]
[1739569802674,0.55,2739.4,2738.6,0.02654492]
[1739569802850,0.55,2739.4,2739.3,3.65056]
[1739569803998,6.1431,2740.1,2739.4,0.7908]
[1739569804180,6.1431,2740.1,2740.0,3.64963]
[1739569804181,5.39,2740.1,2740.0,3.64963]
[1739569804378,6.1431,2740.4,2739.8,3.64981]
[1739569804595,0.539045,2740.3,2740.0,3.64962]
[1739569804903,5.39,2740.4,2740.1,3.64947]
[1739569805070,5.39,2740.4,2740.1,3.64939]
[1739569805395,5.39,2740.4,2739.9,3.64969]
[1739569805396,5.39,2740.4,2739.9,3.64967]
[1739569805601,3.64945,2740.2,2739.6,3.65016]
[1739569805898,0.7531,2740.3,2739.8,3.64989]
[1739569806105,9.03916,2740.4,2740.0,3.64963]
[1739569806106,5.39,2740.4,2740.0,3.64963]
[1739569806248,9.03917,2740.4,2739.8,3.64988]
[1739569806772,9.03917,2740.4,2739.6,3.65011]
[1739569806773,0.55,2740.1,2739.6,3.65007]
[1739569807309,0.55,2740.1,2739.9,3.64971]
[1739569808173,0.55,2740.1,2739.7,3.64997]
[1739569808366,0.55,2740.1,2739.7,3.64994]
[1739569808706,0.55,2739.9,2739.5,3.65021]
[1739569808910,0.55,2739.9,2739.1,4.40738]
[1739569809088,0.55,2739.5,2738.9,3.65101]
[1739569809275,4.40277,2739.2,2738.7,3.65129]
[1739569809457,3.65097,2739.0,2738.5,3.65162]
[1739569809667,3.65131,2738.8,2738.3,3.65182]
[1739569810010,0.55,2738.9,2738.3,3.65179]
[1739569810421,3.65125,2738.8,2738.3,3.65179]
[1739569810876,0.55,2738.9,2738.3,7.30361]
[1739569811072,4.20119,2738.9,2738.3,3.65179]
[1739569811503,0.752,2738.6,2738.1,7.30422]
[1739569811688,0.752,2738.6,2738.1,3.65207]
[1739569812020,4.40311,2738.9,2738.3,3.65182]
[1739569812310,0.55,2738.8,2738.3,7.30359]
[1739569812519,0.55,2738.8,2738.4,3.65174]
[1739569815631,4.20132,2738.8,2738.2,3.65195]
[1739569815950,0.55,2738.8,2738.3,3.65189]
[1739569816230,0.55,2738.8,2738.4,3.65174]
[1739569820708,4.20124,2738.8,2738.4,3.65174]
[1739569821035,0.55,2738.8,2738.4,3.65174]
[1739569821238,0.55,2738.8,2738.3,3.65188]
[1739569821398,4.2013,2738.8,2738.3,3.65188]
[1739569822256,5.94,2738.8,2738.7,3.65136]
[1739569822463,9.59123,2738.8,2738.2,4.42114]
[1739569822616,9.59123,2738.8,2738.3,3.65182]
[1739569822822,1.3811,2738.6,2738.3,3.65182]
[1739569823821,5.39,2738.8,2738.3,3.65178]
[1739569824037,5.39,2738.8,2738.4,3.6517]
[1739569824237,5.39,2738.8,2738.5,3.65159]
[1739569824433,0.55,2738.7,2738.5,3.65159]
[1739569824650,0.55,2738.7,2738.4,3.6517]
[1739569825362,4.20145,2738.7,2738.2,3.65192]
[1739569825560,0.55,2738.7,2738.3,3.65188]
[1739569825725,0.55,2738.7,2738.4,3.65175]
[1739569826228,3.65151,2738.6,2738.1,3.65212]
[1739569826426,0.8311,2738.4,2737.6,0.8112]
[1739569826646,0.8311,2738.4,2738.0,3.6522]
[1739569826958,0.8311,2738.4,2738.0,7.3044]
[1739569827160,0.8311,2738.4,2738.1,3.65207]
[1739569827319,0.8311,2738.4,2738.0,3.6522]
[1739569827523,0.8311,2738.4,2738.2,3.65201]
[1739569827920,0.55,2738.3,2737.8,3.65247]
[1739569828161,0.55,2738.3,2738.0,3.65229]
[1739569828361,0.55,2738.3,2738.1,3.65216]
[1739569829156,4.20199,2738.3,2737.7,3.65257]
[1739569829346,7.85399,2738.3,2737.8,3.6525]
[1739569829560,4.20199,2738.3,2737.8,3.6525]
[1739569830240,0.55,2738.3,2737.6,0.8112]
[1739569830444,0.55,2738.3,2737.9,3.65237]
[1739569830745,4.2019,2738.3,2737.9,3.65237]
[1739569831333,4.2019,2738.3,2737.8,3.65255]
[1739569832028,5.39,2738.2,2737.7,3.6527]
[1739569832230,4.20217,2738.1,2737.3,0.8112]
[1739569832428,6.2211,2738.0,2737.6,3.65282]
[1739569832641,0.55,2737.8,2737.6,3.65282]
[1739569832855,0.61739797,2737.7,2737.6,3.65282]
[1739569833577,0.06739797,2737.7,2737.6,3.65282]
[1739569833738,0.06739797,2737.7,2737.6,4.383398]
[1739569833938,5.39,2738.0,2737.9,3.65243]
[1739569834254,3.65173,2738.5,2737.9,3.65243]
[1739569834255,5.39,2738.3,2738.1,3.65206]
[1739569835073,0.55,2738.2,2738.1,3.65206]
[1739569835871,0.61496427,2738.2,2738.1,3.65206]
[1739569837174,0.61496427,2738.2,2737.9,3.65233]
[1739569837380,0.61496427,2738.2,2737.8,4.46375]
[1739569837548,0.61496427,2738.2,2737.8,3.65255]
[1739569837736,0.8086,2738.1,2737.6,0.8112]
[1739569838072,0.06504869,2738.0,2737.9,3.65237]
[1739569838273,0.55,2738.0,2737.9,3.65237]
[1739569838436,0.61518808,2738.0,2737.9,3.65237]
[1739569840738,0.61518808,2738.0,2737.8,3.65255]
[1739569841367,0.61518808,2738.0,2737.8,3.65248]
[1739569841563,0.61518808,2738.0,2737.9,3.65243]
[1739569841768,0.61518808,2738.0,2737.7,3.65261]
[1739569841948,0.61518808,2738.0,2737.8,3.65255]
[1739569843883,0.06518808,2738.0,2737.8,3.65256]
[1739569844258,0.55,2738.2,2737.8,3.65256]
[1739569844551,0.55,2738.0,2737.8,3.65256]
[1739569844980,0.55,2737.8,2737.7,3.65261]
[1739569845276,0.06507979,2737.8,2737.7,3.65261]
[1739569845483,5.39,2738.3,2737.9,3.65232]
[1739569845842,0.55,2738.2,2737.9,3.65232]
[1739569846043,0.55,2738.2,2738.1,3.65216]
[1739569846239,5.39,2738.3,2738.1,3.65216]
[1739569846474,5.39,2738.3,2738.0,3.65225]
[1739569846878,0.61380658,2738.2,2738.0,3.65225]
[1739569847183,0.55,2738.1,2737.8,3.65249]
[1739569847387,0.61380658,2738.2,2737.8,3.65249]
[1739569847558,0.06375569,2738.0,2737.9,3.65237]
[1739569847760,0.55,2738.1,2737.9,3.65237]
[1739569847960,0.06375569,2738.0,2737.9,3.65237]
[1739569848544,0.06375569,2738.0,2737.8,3.65244]
[1739569848749,0.55,2737.9,2737.7,3.65258]
[1739569848949,0.06375569,2738.0,2737.8,3.65256]
[1739569849145,5.39,2738.3,2738.0,3.65227]
[1739569849388,0.55,2738.2,2737.9,3.65242]
[1739569849604,0.55,2738.2,2737.4,7.54723196]
[1739569849897,0.55,2738.2,2737.9,3.65241]
[1739569850599,0.06378114,2738.1,2737.9,3.65241]
[1739569852301,0.55,2738.2,2737.9,3.65241]
[1739569852517,0.06375569,2738.0,2737.9,3.65241]
[1739569852807,0.55,2738.2,2737.9,3.65241]
[1739569852977,0.06375569,2738.0,2737.9,3.65241]
[1739569853186,0.55,2738.2,2738.0,3.65226]
[1739569853693,0.55,2738.2,2738.1,3.65216]
[1739569854095,0.55,2738.2,2738.0,3.65222]
[1739569854493,0.55,2738.2,2737.9,3.65242]
[1739569854866,0.55,2738.2,2737.8,3.65248]
[1739569856511,0.55,2738.2,2737.8,7.30499]
[1739569857308,0.55,2738.2,2737.8,3.65248]
[1739569857614,3.65284,2737.6,2737.1,5.3602298]
[1739569857817,4.20296,2737.5,2737.1,0.1538268]
[1739569859927,0.55,2737.5,2737.1,0.1538268]
[1739569860441,0.55,2737.5,2737.2,3.65334]
[1739569860640,0.55,2737.5,2737.2,7.30664]
[1739569860947,0.55,2737.5,2737.2,3.6533]
[1739569861145,0.55,2737.5,2737.1,0.1538268]
[1739569861298,0.55,2737.5,2737.1,3.8072368]
[1739569861498,4.20299,2737.5,2737.1,0.1538268]
[1739569861951,0.816,2737.2,2737.1,0.1538268]
[1739569862129,5.06503147,2737.2,2737.1,0.1538268]
[1739569862335,10.33139814,2737.2,2737.1,0.1538268]
[1739569862541,18.67572196,2737.2,2737.1,0.1538268]
[1739569862900,18.8579141,2737.2,2737.1,0.1538268]
[1739569863621,16.1419141,2737.2,2737.1,0.1538268]
[1739569865449,6.45033703,2737.2,2737.1,0.1538268]
[1739569865601,5.45214489,2737.2,2737.1,0.1538268]
[1739569865801,5.45214489,2737.2,2737.1,4.18806548]
[1739569866250,6.00214489,2737.2,2737.1,4.18806548]
[1739569866546,6.00214489,2737.2,2737.1,3.8073268]
[1739569866897,5.45214489,2737.2,2737.1,3.8073268]
[1739569869027,0.06214489,2737.2,2737.1,3.8073268]
[1739569869224,5.39,2738.0,2737.8,3.65251]
[1739569869427,0.06265548,2737.9,2737.8,3.65248]
[1739569869646,3.6521,2738.2,2737.6,3.65271]
[1739569869812,0.55,2738.0,2737.6,3.65271]
[1739569870013,5.674,2738.3,2737.9,3.65242]
[1739569870233,5.674,2738.3,2738.0,3.65218]
[1739569870428,5.39,2738.3,2738.1,3.65213]
[1739569870857,0.55,2738.2,2738.1,3.65213]
[1739569871015,0.55,2738.2,2738.0,3.65218]
[1739569871220,5.39,2738.3,2737.9,3.65239]
[1739569871417,5.39,2738.3,2737.6,3.65277]
[1739569871644,0.55,2738.2,2737.6,3.65277]
[1739569872015,0.55,2738.2,2737.4,3.65305]
[1739569872016,4.2023,2738.0,2737.4,3.65305]
[1739569872229,4.2023,2738.0,2737.4,7.30607]
[1739569872456,0.06328732,2737.9,2737.4,3.65302]
[1739569872759,0.7559,2737.7,2737.2,3.65332]
[1739569872959,4.20283,2737.6,2737.1,0.1538268]
[1739569873131,0.61321096,2737.6,2737.1,0.1538268]
[1739569873326,0.61321096,2737.6,2737.4,3.653]
[1739569874116,0.06321096,2737.6,2737.5,4.40716]
[1739569874312,0.06321096,2737.6,2737.5,5.213176]
[1739569874623,5.39,2738.3,2738.0,3.65228]
[1739569874850,0.55,2738.1,2738.0,3.65227]
[1739569875053,0.61336287,2738.1,2737.7,3.65261]
[1739569875274,0.61336287,2738.1,2737.7,7.30523]
[1739569875479,0.61336287,2738.1,2737.7,3.65261]
[1739569875970,0.55,2737.9,2737.7,3.65261]
[1739569876369,0.61351618,2737.8,2737.7,3.65261]
[1739569876575,0.06351618,2737.8,2737.7,3.65261]
[1739569876749,0.06351618,2737.8,2737.7,4.40681]
[1739569876950,5.39,2738.9,2738.4,3.65175]
[1739569876951,6.1459,2738.9,2738.4,3.65175]
[1739569877286,0.7559,2738.6,2737.9,0.7542]
[1739569877448,0.55,2738.4,2738.0,3.6522]
[1739569877648,0.05904852,2738.3,2738.2,3.65194]
[1739569877979,3.65146,2738.7,2738.1,3.65215]
[1739569878135,0.55,2738.2,2737.9,3.65238]
[1739569878336,0.55,2738.2,2737.7,3.65258]
[1739569878536,0.55,2738.0,2737.8,3.65247]
[1739569878773,0.55,2738.0,2737.7,3.65258]
[1739569878978,0.55,2737.8,2737.7,3.65258]
[1739569879548,0.55,2737.8,2737.6,3.65282]
[1739569879870,0.05686771,2737.7,2737.6,7.30551]
[1739569880040,0.55,2737.7,2737.6,3.65275]
[1739569880234,0.60686771,2737.7,2737.6,3.65275]
[1739569883385,0.55,2737.6,2737.4,3.65303]
[1739569883693,0.55,2737.7,2737.5,3.65296]
[1739569883912,0.05676008,2737.6,2737.4,3.65303]
[1739569884680,0.05676008,2737.6,2737.5,3.65285]
[1739569885461,0.55,2737.9,2737.4,3.65303]
[1739569885462,0.55,2737.9,2737.6,3.65281]
[1739569885657,0.55,2737.7,2737.6,3.65281]
[1739569885858,0.60674855,2737.7,2737.6,3.65281]
[1739569888299,0.60674855,2737.7,2737.5,3.65289]
[1739569888498,0.60674855,2737.7,2737.5,7.30578]
[1739569888871,0.60674855,2737.7,2737.6,3.65283]
[1739569891504,0.05674855,2737.7,2737.6,3.65283]
[1739569891674,5.39,2738.0,2737.6,0.8057]
[1739569892007,5.94,2738.0,2737.9,3.65243]
[1739569892502,5.99480231,2738.0,2737.9,3.65243]
[1739569893362,5.44480231,2738.0,2737.9,3.65243]
[1739569896208,5.44480231,2738.0,2737.9,4.45813]
[1739569896387,0.05480231,2738.0,2737.9,4.45813]
[1739569896705,0.55,2738.2,2738.1,3.65216]
[1739569896909,0.55,2738.5,2738.3,3.6518]
[1739569899616,0.05475713,2738.4,2738.3,7.30362]
[1739569900135,0.55,2738.3,2738.2,3.65202]
[1739569900731,0.60453773,2738.3,2738.2,3.65202]
[1739569903035,0.60453773,2738.3,2737.9,3.65234]
[1739569903240,1.39403773,2738.3,2737.7,3.65256]
[1739569903414,6.78403773,2738.3,2737.7,3.65256]
[1739569903733,0.55,2738.1,2737.7,3.65256]
[1739569903899,0.55,2737.9,2737.7,3.65256]
[1739569904098,0.60454609,2737.8,2737.7,3.65256]
[1739569904499,0.05454609,2737.8,2737.7,4.48036]
[1739569904905,0.55,2738.1,2738.0,3.6523]
[1739569905106,0.60451561,2738.1,2738.0,3.6523]
[1739569906610,0.05451561,2738.1,2738.0,3.6523]
[1739569907033,5.94,2738.3,2738.2,3.65203]
[1739569908556,5.94,2738.3,2738.2,4.47983]
[1739569909406,6.1795,2738.9,2738.6,3.65146]
[1739569909611,5.39,2738.9,2738.7,3.65128]
[1739569910750,0.60270771,2738.8,2738.7,3.65128]
[1739569911407,0.05270771,2738.8,2738.6,3.65149]
[1739569911613,0.55,2738.7,2738.6,3.65149]
[1739569913853,0.55,2738.7,2738.5,3.65156]
[1739569914414,0.60317441,2738.6,2738.5,3.65156]
[1739569915361,0.55,2738.6,2738.5,3.65156]
[1739569916365,0.60127733,2738.6,2738.5,3.65156]
[1739569917258,0.05127733,2738.6,2738.5,3.65156]
[1739569917438,0.05127733,2738.6,2738.5,4.46156757]
[1739569917644,0.55,2738.8,2738.7,3.65136]
[1739569918034,0.60134873,2738.8,2738.7,3.65136]
[1739569918819,0.05134873,2738.8,2738.7,3.65136]
[1739569919017,0.05134873,2738.8,2738.7,4.42156]
[1739569919252,0.05134873,2738.8,2738.7,5.54043247]
[1739569919449,0.05134873,2738.8,2738.7,5.56697605]
[1739569919619,4.20045,2739.4,2738.9,3.65108]
[1739569919825,4.20045,2739.4,2738.9,3.65102]
[1739569920054,4.20045,2739.4,2738.7,0.7702]
[1739569920242,4.20045,2739.4,2739.0,3.65096]
[1739569920560,0.55,2739.4,2739.0,3.65096]
[1739569920761,4.20044,2739.4,2739.0,3.65096]
[1739569921123,0.55,2739.4,2739.0,3.65096]
[1739569921537,0.05160316,2739.3,2739.0,3.65096]
[1739569922368,0.05160316,2739.3,2738.9,3.65107]
[1739569923366,0.05160316,2739.3,2738.8,3.65119]
[1739569923527,0.05160316,2739.3,2739.0,3.65095]
[1739569924152,0.05160316,2739.3,2738.9,3.65109]
[1739569924664,0.05160316,2739.3,2738.8,3.65119]
[1739569924828,0.05160316,2739.3,2739.0,3.65096]
[1739569925224,0.05160316,2739.3,2739.1,3.65077]
[1739569925435,0.05160316,2739.3,2738.9,3.65101]
[1739569925634,0.7814,2739.1,2738.9,3.65103]
[1739569925834,0.7814,2739.1,2738.4,4.45414]
[1739569926050,0.05160316,2739.3,2737.7,3.65266]
[1739569926051,0.7814,2738.4,2737.7,3.65266]
[1739569926252,0.55,2738.3,2737.8,3.65248]
[1739569926421,0.59808326,2738.3,2737.6,0.8024]
[1739569926628,0.59808326,2738.3,2737.9,3.65235]
[1739569926865,1.3314,2738.0,2737.5,3.65289]
[1739569927231,0.04778846,2737.9,2737.5,3.65289]
[1739569927673,0.04778846,2737.9,2737.6,3.6528]
[1739569927834,0.04778846,2737.9,2737.5,3.65289]
[1739569928172,0.59778846,2737.9,2737.8,3.65256]
[1739569928539,0.04778846,2737.9,2737.8,3.65256]
[1739569928763,0.7691,2738.3,2737.8,3.65256]
[1739569928965,0.04742289,2737.9,2737.7,3.65269]
[1739569929168,4.20205,2738.2,2737.6,3.65282]
[1739569929371,0.04739744,2737.8,2737.7,3.6527]
[1739569929573,0.7691,2738.3,2738.0,3.65224]
[1739569930105,0.7691,2738.6,2738.2,3.65195]
[1739569930394,0.55,2738.5,2738.2,3.65195]
[1739569930615,0.18083614,2738.9,2738.3,3.65188]
[1739569930761,0.7691,2738.7,2738.3,3.6519]
[1739569930956,0.55,2738.6,2738.4,3.65176]
[1739569931155,0.7691,2738.9,2738.5,3.65154]
[1739569932011,0.7691,2738.9,2738.6,3.65138]
[1739569932301,4.41969,2739.3,2738.6,0.730292]
[1739569932506,0.7691,2739.3,2739.0,3.65096]
[1739569932899,0.7691,2739.3,2738.9,3.65107]
[1739569933210,0.59804112,2739.2,2738.9,3.65107]
[1739569933816,0.59804112,2739.2,2738.7,4.45328]
[1739569933971,0.59804112,2739.2,2738.7,3.65128]
[1739569934174,4.20104,2739.0,2738.5,3.65158]
[1739569934389,0.55,2739.0,2738.6,3.65143]
[1739569934697,0.55,2738.8,2738.5,3.65154]
[1739569934899,0.55,2738.8,2738.6,3.65146]
[1739569935102,0.04811107,2738.7,2738.6,3.65146]
[1739569935409,0.55,2738.7,2738.6,3.65146]
[1739569935700,0.04811107,2738.7,2738.6,5.1838]
[1739569935905,0.7691,2739.3,2738.9,3.65099]
[1739569936261,0.55,2739.1,2738.9,7.30198]
[1739569936567,0.5981299,2739.0,2738.9,3.65099]
[1739569936992,0.5981299,2739.0,2738.9,4.381213]
[1739569937298,0.0481299,2739.0,2738.9,3.65099]
[1739569937801,3.6503,2739.5,2739.0,3.65093]
[1739569938191,0.55,2739.1,2738.7,3.6513]
[1739569938506,0.55,2739.3,2738.8,3.65113]
[1739569938874,3.69643662,2739.2,2738.6,3.65148]
[1739569939275,0.55,2739.0,2738.3,3.65179]
[1739569939480,0.55,2738.8,2738.3,3.65179]
[1739569939672,4.2012,2738.9,2738.4,3.65173]
[1739569940287,0.55,2739.0,2738.4,3.65173]
[1739569940488,0.04813243,2738.8,2738.5,3.65152]
[1739569940716,0.04815786,2738.9,2738.5,3.65152]
[1739569940877,0.55,2738.6,2738.5,3.65152]
[1739569941084,0.04808156,2738.6,2738.5,3.65152]
[1739569941283,0.04808156,2738.6,2738.3,3.67835745]
[1739569941284,0.04808156,2738.6,2738.4,3.65175]
[1739569941597,0.04805612,2738.5,2738.4,3.65175]
[1739569942107,4.20097,2739.0,2738.5,3.65159]
[1739569942299,0.55,2739.0,2738.6,3.65143]
[1739569942817,0.55,2739.0,2738.8,3.6512]
[1739569943484,0.55,2739.0,2738.8,3.65117]
[1739569943684,0.55,2739.0,2738.6,3.6514]
[1739569945238,3.65111,2738.9,2738.4,3.65168]
[1739569945528,0.55,2738.7,2738.4,3.65168]
[1739569946099,4.20103,2739.0,2738.5,3.65162]
[1739569946650,2.19,2738.9,2738.5,3.65162]
[1739569947752,0.284,2739.3,2737.9,3.08913883]
[1739569947753,0.55,2738.5,2738.3,3.65188]
[1739569948239,0.55,2738.5,2738.2,3.652]
[1739569949003,0.55,2738.5,2738.3,3.65189]
[1739569950018,0.55,2738.5,2738.2,3.65199]
[1739569950519,6.39174,2738.5,2738.0,3.65229]
[1739569951146,5.84176,2738.4,2738.0,3.65229]
[1739569951312,0.55,2738.2,2737.8,7.30502]
[1739569951517,0.55,2738.2,2737.9,3.65239]
[1739569952122,0.55,2738.2,2737.6,0.8068]
[1739569952123,4.40776,2738.1,2737.6,4.45954]
[1739569952302,4.40776,2738.1,2737.5,3.6529]
[1739569952303,4.20231,2738.0,2737.5,3.6529]
[1739569953249,0.55,2738.0,2737.6,3.65277]
[1739569953401,0.55,2738.0,2737.7,3.6526]
[1739569954255,0.55,2738.0,2737.4,3.6531]
[1739569954454,4.20238,2738.0,2737.4,7.30611]
[1739569954900,4.20238,2738.0,2737.5,3.65295]
[1739569955380,0.55,2738.0,2737.6,3.65274]
[1739569955764,0.55,2738.0,2737.7,3.65262]
[1739569955954,0.55,2738.0,2737.8,3.65256]
[1739569956748,0.55,2738.0,2737.6,3.65274]
[1739569957091,0.55,2738.0,2737.8,3.65255]
[1739569957599,1.3056,2738.3,2737.9,3.65232]
[1739569958165,1.3056,2738.3,2738.0,3.65226]
[1739569959054,4.95751,2738.3,2737.9,3.6524]
[1739569959492,4.95751,2738.3,2737.7,3.65261]
[1739569959701,4.95751,2738.3,2737.8,3.65256]
[1739569960993,4.95751,2738.3,2737.7,3.65261]
[1739569961297,5.84351,2738.6,2737.8,0.02657809]
[1739569961592,0.8331,2738.6,2738.3,3.65185]
[1739569961793,9.43519,2738.9,2738.5,3.65163]
[1739569961794,6.6171,2738.9,2738.5,3.65163]
[1739569962296,0.55,2738.8,2738.5,7.30317]
[1739569962456,6.6171,2738.9,2738.6,3.65145]